[Event "44th Chess Olympiad Open 2022"]
[Site "Chennai"]
[Date "2022.07.31"]
[Round "3.44"]
[White "Gavarrete, Joel"]
[Black "Golubovskis, Maksims"]
[Result "0-1"]
[WhiteElo "2035"]
[BlackElo "2219"]
[Annotator "RC"]
[PlyCount "84"]
[EventDate "2022.??.??"]
[TimeControl "60"]

1. Nf3 {[%emt 0:00:07]} c5 {[%emt 0:00:10]} 2. b3 {[%emt 0:01:45]} d6 {[%emt 0:
00:00]} 3. d4 {[%emt 0:03:26]} cxd4 {[%emt 0:00:06]} 4. Nxd4 {[%emt 0:00:31]}
e5 {[%emt 0:00:20]} 5. Nf3 {[%emt 0:01:49]} Nf6 {[%emt 0:00:41]} 6. e3 {
[%emt 0:05:53]} Nc6 {[%emt 0:04:32]} 7. Bb2 {[%emt 0:05:28]} Be7 {[%emt 0:00:
00]} 8. Be2 {[%emt 0:05:36]} O-O {[%emt 0:05:53]} 9. c4 {[%emt 0:09:14]} Bf5 {
[%emt 0:13:39]} 10. Nc3 {[%emt 0:04:14]} h6 {[%emt 0:03:52]} 11. O-O {[%emt 0:
00:00]} Qd7 {[%emt 0:02:36]} 12. Qd2 {[%emt 0:20:48]} Rad8 {[%emt 0:03:36]} 13.
Rad1 {[%emt 0:02:21]} Rfe8 {[%emt 0:03:10]} 14. Rfe1 {[%emt 0:03:26]} Bf8 {
[%emt 0:02:34]} 15. Bf1 {[%emt 0:00:42]} Ne4 {[%emt 0:02:25]} 16. Qc1 {[%emt 0:
00:00]} Nxc3 {[%emt 0:10:45]} 17. Qxc3 {[%emt 0:00:28]} Bg4 {[%emt 0:02:05]}
18. e4 {[%emt 0:02:45]} Nd4 {[%emt 0:04:05]} 19. Be2 {[%emt 0:02:49]} Nxe2+ {
[%emt 0:00:12]} 20. Rxe2 {[%emt 0:00:08]} f5 {[%emt 0:04:42]} 21. h3 {[%emt 0:
00:00]} Bh5 {[%emt 0:00:05]} 22. Re3 {[%emt 0:03:13]} fxe4 {[%emt 0:01:33]} 23.
Rxe4 {[%emt 0:00:49]} Qc6 {[%emt 0:01:38]} 24. Rde1 {[%emt 0:01:25]} Bg6 {
[%emt 0:02:11]} 25. Rg4 {[%emt 0:01:39]} Bf5 {[%emt 0:01:01]} 26. Rg3 {[%emt 0:
00:00]} Re6 {[%emt 0:06:38]} 27. Nh4 {[%emt 0:04:02]} Bh7 {[%emt 0:00:18]} 28.
f4 {[%emt 0:01:15]} Be4 {[%emt 0:05:47]} 29. fxe5 {[%emt 0:02:00]} dxe5 {
[%emt 0:00:17]} 30. Rge3 {[%emt 0:01:42]} Bc5 {[%emt 0:00:29]} 31. Kh2 {
[%emt 0:00:32]} Bxe3 {[%emt 0:01:14]} 32. Qxe3 {[%emt 0:00:07]} Bh7 {[%emt 0:
00:00]} 33. Bxe5 {[%emt 0:00:58]} Qe8 {[%emt 0:02:44]} 34. Qg3 {[%emt 0:00:46]}
Rd7 {[%emt 0:01:14]} 35. Rd1 {[%emt 0:01:33]} Rg6 {[%emt 0:02:04]} 36. Nxg6 {
[%emt 0:00:52]} Rxd1 {[%emt 0:00:08]} 37. Nh4 {[%emt 0:00:22]} Qe7 {[%emt 0:00:
00]} 38. Bc3 {[%emt 0:00:43]} Rd3 {[%emt 0:02:13]} 39. Qb8+ {[%emt 0:00:18]}
Qd8 {[%emt 0:00:22]} 40. Qe5 {[%emt 0:00:44]} Rxc3 {[%emt 0:00:42]} 41. Qxc3 {
[%emt 0:30:12]} Qxh4 {[%emt 0:30:10]} 42. Qe5 {[%emt 0:00:09]} Qd8 {[%emt 0:00:
00]} 0-1

[Event "44th Chess Olympiad Open 2022"]
[Site "Chennai"]
[Date "2022.07.31"]
[Round "3.45"]
[White "Hossain, Enamul"]
[Black "Willem Blijstra"]
[Result "1-0"]
[WhiteElo "2377"]
[BlackElo "2198"]
[Annotator "RC"]
[PlyCount "67"]
[EventDate "2022.??.??"]
[TimeControl "60"]

1. e4 {[%emt 0:00:11]} c5 {[%emt 0:00:29]} 2. Nf3 {[%emt 0:00:10]} d6 {[%emt 0:
00:00]} 3. d4 {[%emt 0:00:13]} cxd4 {[%emt 0:00:04]} 4. Nxd4 {[%emt 0:00:09]}
Nf6 {[%emt 0:00:44]} 5. Nc3 {[%emt 0:00:11]} a6 {[%emt 0:01:46]} 6. Be3 {
[%emt 0:00:55]} e5 {[%emt 0:03:47]} 7. Nb3 {[%emt 0:00:32]} Be6 {[%emt 0:00:09]
} 8. f3 {[%emt 0:00:24]} h5 {[%emt 0:04:38]} 9. Qd2 {[%emt 0:01:34]} Nbd7 {
[%emt 0:01:14]} 10. O-O-O {[%emt 0:01:01]} Be7 {[%emt 0:02:10]} 11. Kb1 {
[%emt 0:01:11]} b5 {[%emt 0:01:20]} 12. Nd5 {[%emt 0:01:26]} Bxd5 {[%emt 0:00:
00]} 13. exd5 {[%emt 0:00:05]} Nb6 {[%emt 0:00:08]} 14. Bxb6 {[%emt 0:01:19]}
Qxb6 {[%emt 0:00:23]} 15. Na5 {[%emt 0:00:01]} Rc8 {[%emt 0:01:42]} 16. c4 {
[%emt 0:00:18]} bxc4 {[%emt 0:05:25]} 17. Nxc4 {[%emt 0:00:17]} Qc7 {[%emt 0:
00:00]} 18. Be2 {[%emt 0:15:28]} O-O {[%emt 0:02:15]} 19. Rc1 {[%emt 0:07:57]}
Qb7 {[%emt 0:02:39]} 20. Rhd1 {[%emt 0:09:39]} Rc5 {[%emt 0:00:24]} 21. Na5 {
[%emt 0:01:40]} Qb6 {[%emt 0:24:41]} 22. Rxc5 {[%emt 0:06:24]} Qxc5 {[%emt 0:
00:00]} 23. Nc6 {[%emt 0:00:57]} Bd8 {[%emt 0:00:42]} 24. Bxa6 {[%emt 0:00:26]}
Bb6 {[%emt 0:01:30]} 25. b4 {[%emt 0:05:17]} Qe3 {[%emt 0:00:06]} 26. Ne7+ {
[%emt 0:06:22]} Kh7 {[%emt 0:02:22]} 27. Qxe3 {[%emt 0:00:30]} Bxe3 {[%emt 0:
00:00]} 28. Nf5 {[%emt 0:00:12]} Bb6 {[%emt 0:02:38]} 29. Nxd6 {[%emt 0:04:45]}
Bd4 {[%emt 0:01:41]} 30. Bc4 {[%emt 0:03:38]} g6 {[%emt 0:02:20]} 31. Kc2 {
[%emt 0:02:52]} Kg7 {[%emt 0:00:38]} 32. Nb5 {[%emt 0:00:44]} Rc8 {[%emt 0:00:
00]} 33. Kb3 {[%emt 0:00:11]} Be3 {[%emt 0:01:33]} 34. Re1 {[%emt 0:01:19]} 1-0

[Event "44th Chess Olympiad Open 2022"]
[Site "Chennai"]
[Date "2022.07.31"]
[Round "3.45"]
[White "Zia, Tahsin Tajwar"]
[Black "Rurik Capella"]
[Result "1-0"]
[WhiteElo "2307"]
[BlackElo "1952"]
[Annotator "RC"]
[PlyCount "67"]
[EventDate "2022.??.??"]
[TimeControl "60"]

1. d4 {[%emt 0:00:09]} Nf6 {[%emt 0:00:18]} 2. c4 {[%emt 0:00:28]} c5 {[%emt 0:
00:00]} 3. d5 {[%emt 0:00:06]} e6 {[%emt 0:00:02]} 4. Nc3 {[%emt 0:00:07]} exd5
{[%emt 0:00:06]} 5. cxd5 {[%emt 0:00:05]} d6 {[%emt 0:00:10]} 6. Nf3 {[%emt 0:
00:00]} a6 {[%emt 0:00:42]} 7. a4 {[%emt 0:00:08]} g6 {[%emt 0:00:05]} 8. g3 {
[%emt 0:00:05]} Bg7 {[%emt 0:00:24]} 9. Bg2 {[%emt 0:00:08]} O-O {[%emt 0:00:
00]} 10. O-O {[%emt 0:00:06]} Bf5 {[%emt 0:06:01]} 11. Nh4 {[%emt 0:00:55]} Qc8
{[%emt 0:07:26]} 12. Nxf5 {[%emt 0:01:19]} Qxf5 {[%emt 0:00:03]} 13. Bf4 {
[%emt 0:03:10]} Ne8 {[%emt 0:02:20]} 14. e4 {[%emt 0:00:31]} Qf6 {[%emt 0:00:
00]} 15. Qb3 {[%emt 0:11:08]} Qe7 {[%emt 0:04:57]} 16. Rfe1 {[%emt 0:05:19]}
Nd7 {[%emt 0:14:30]} 17. Qxb7 {[%emt 0:17:33]} Rb8 {[%emt 0:01:48]} 18. Qxa6 {
[%emt 0:00:07]} Rxb2 {[%emt 0:00:11]} 19. Nb5 {[%emt 0:00:52]} Ne5 {[%emt 0:00:
00]} 20. Rab1 {[%emt 0:19:19]} Nd3 {[%emt 0:13:18]} 21. Rxb2 {[%emt 0:03:26]}
Nxe1 {[%emt 0:02:57]} 22. Re2 {[%emt 0:01:56]} Nxg2 {[%emt 0:01:03]} 23. Kxg2 {
[%emt 0:07:57]} c4 {[%emt 0:13:11]} 24. Bxd6 {[%emt 0:03:40]} Nxd6 {[%emt 0:00:
00]} 25. Qxd6 {[%emt 0:00:07]} Qxd6 {[%emt 0:06:06]} 26. Nxd6 {[%emt 0:00:07]}
c3 {[%emt 0:00:28]} 27. e5 {[%emt 0:04:08]} Rd8 {[%emt 0:06:27]} 28. f4 {
[%emt 0:01:24]} Rb8 {[%emt 0:00:40]} 29. e6 {[%emt 0:01:29]} fxe6 {[%emt 0:00:
00]} 30. dxe6 {[%emt 0:00:07]} Bf8 {[%emt 0:00:31]} 31. e7 {[%emt 0:00:23]}
Bxe7 {[%emt 0:01:04]} 32. Rxe7 {[%emt 0:00:07]} Rd8 {[%emt 0:01:31]} 33. Nb5 {
[%emt 0:00:28]} Rc8 {[%emt 0:00:35]} 34. Re1 {[%emt 0:00:14]} 1-0

[Event "44th Chess Olympiad Open 2022"]
[Site "Chennai"]
[Date "2022.07.31"]
[Round "3.45"]
[White "Ursus van Bemmelen"]
[Black "Rahman, Ziaur"]
[Result "0-1"]
[WhiteElo "2145"]
[BlackElo "2424"]
[Annotator "RC"]
[PlyCount "66"]
[EventDate "2022.??.??"]
[TimeControl "60"]

1. d4 {[%emt 0:00:11]} e6 {[%emt 0:00:42]} 2. Nf3 {[%emt 0:01:11]} Nf6 {
[%emt 0:00:28]} 3. g3 {[%emt 0:02:11]} b5 {[%emt 0:02:45]} 4. Bg2 {[%emt 0:00:
00]} Bb7 {[%emt 0:00:07]} 5. O-O {[%emt 0:00:12]} c5 {[%emt 0:00:19]} 6. a4 {
[%emt 0:09:48]} b4 {[%emt 0:00:27]} 7. c3 {[%emt 0:06:10]} Na6 {[%emt 0:00:48]}
8. Bg5 {[%emt 0:07:15]} Be7 {[%emt 0:02:34]} 9. Nbd2 {[%emt 0:04:01]} O-O {
[%emt 0:04:01]} 10. Re1 {[%emt 0:05:20]} Rb8 {[%emt 0:07:26]} 11. e4 {[%emt 0:
00:00]} bxc3 {[%emt 0:02:33]} 12. bxc3 {[%emt 0:06:05]} cxd4 {[%emt 0:02:20]}
13. cxd4 {[%emt 0:00:08]} Nb4 {[%emt 0:00:22]} 14. Rb1 {[%emt 0:07:50]} a5 {
[%emt 0:01:52]} 15. Ne5 {[%emt 0:00:56]} d6 {[%emt 0:02:21]} 16. Nec4 {[%emt 0:
00:00]} h6 {[%emt 0:08:40]} 17. Bxf6 {[%emt 0:02:10]} Bxf6 {[%emt 0:00:10]} 18.
Nb3 {[%emt 0:00:19]} Ba6 {[%emt 0:04:46]} 19. Nxd6 {[%emt 0:02:33]} Nd3 {
[%emt 0:10:01]} 20. Rf1 {[%emt 0:13:07]} Qxd6 {[%emt 0:01:24]} 21. e5 {[%emt 0:
00:00]} Nxe5 {[%emt 0:02:36]} 22. dxe5 {[%emt 0:00:06]} Qxe5 {[%emt 0:00:25]}
23. Re1 {[%emt 0:00:13]} Qc3 {[%emt 0:00:52]} 24. Re3 {[%emt 0:00:44]} Qb4 {
[%emt 0:01:30]} 25. Nd2 {[%emt 0:01:52]} Qd4 {[%emt 0:00:57]} 26. Ne4 {[%emt 0:
00:00]} Rfd8 {[%emt 0:03:23]} 27. Nxf6+ {[%emt 0:01:35]} gxf6 {[%emt 0:01:02]}
28. Qe1 {[%emt 0:03:48]} Rxb1 {[%emt 0:01:02]} 29. Qxb1 {[%emt 0:00:02]} Qxa4 {
[%emt 0:01:59]} 30. Bf3 {[%emt 0:00:03]} Qb4 {[%emt 0:01:48]} 31. Qa1 {[%emt 0:
00:00]} Rb8 {[%emt 0:02:35]} 32. Re1 {[%emt 0:05:00]} e5 {[%emt 0:00:45]} 33.
h4 {[%emt 0:00:33]} a4 {[%emt 0:01:35]} 0-1

[Event "44th Chess Olympiad Open 2022"]
[Site "Chennai"]
[Date "2022.07.31"]
[Round "3.46"]
[White "Mieles Palau, Daniel"]
[Black "Cilia Vincenti, David"]
[Result "1-0"]
[WhiteElo "2364"]
[BlackElo "1904"]
[Annotator "RC"]
[PlyCount "37"]
[EventDate "2022.??.??"]
[TimeControl "60"]

1. c4 {[%emt 0:01:22]} e6 {[%emt 0:00:08]} 2. Nf3 {[%emt 0:00:18]} d5 {[%emt 0:
00:00]} 3. e3 {[%emt 0:00:07]} Nf6 {[%emt 0:00:20]} 4. b3 {[%emt 0:05:20]} Nbd7
{[%emt 0:01:01]} 5. Bb2 {[%emt 0:00:05]} Bd6 {[%emt 0:00:16]} 6. g4 {[%emt 0:
00:00]} Nxg4 {[%emt 0:08:10]} 7. Bxg7 {[%emt 0:00:48]} Rg8 {[%emt 0:00:36]} 8.
Bb2 {[%emt 0:00:07]} Nde5 {[%emt 0:15:25]} 9. Nxe5 {[%emt 0:12:35]} Bxe5 {
[%emt 0:00:33]} 10. d4 {[%emt 0:02:12]} Qh4 {[%emt 0:05:29]} 11. Qe2 {[%emt 0:
00:00]} Bxh2 {[%emt 0:14:27]} 12. Nd2 {[%emt 0:01:49]} Qf6 {[%emt 0:24:36]} 13.
Bh3 {[%emt 0:04:38]} e5 {[%emt 0:01:18]} 14. O-O-O {[%emt 0:06:21]} e4 {
[%emt 0:03:38]} 15. cxd5 {[%emt 0:07:55]} Bf5 {[%emt 0:01:00]} 16. Bxg4 {
[%emt 0:00:22]} Bxg4 {[%emt 0:00:22]} 17. f3 {[%emt 0:02:33]} exf3 {[%emt 0:00:
00]} 18. Qxh2 {[%emt 0:00:04]} O-O-O {[%emt 0:00:22]} 19. e4 {[%emt 0:00:04]}
1-0

[Event "44th Chess Olympiad Open 2022"]
[Site "Chennai"]
[Date "2022.07.31"]
[Round "3.46"]
[White "Noboa Silva, Kevin"]
[Black "Mizzi, Jack"]
[Result "1-0"]
[WhiteElo "2304"]
[BlackElo "1913"]
[Annotator "RC"]
[PlyCount "125"]
[EventDate "2022.??.??"]
[TimeControl "60"]

1. d4 {[%emt 0:00:06]} d5 {[%emt 0:00:11]} 2. c4 {[%emt 0:00:10]} e6 {[%emt 0:
00:00]} 3. Nc3 {[%emt 0:00:16]} Nf6 {[%emt 0:00:07]} 4. cxd5 {[%emt 0:00:30]}
exd5 {[%emt 0:00:21]} 5. Bg5 {[%emt 0:00:31]} c6 {[%emt 0:00:49]} 6. e3 {
[%emt 0:00:22]} Be7 {[%emt 0:00:31]} 7. Bd3 {[%emt 0:00:38]} O-O {[%emt 0:00:
00]} 8. Nge2 {[%emt 0:01:01]} Nbd7 {[%emt 0:00:23]} 9. Qc2 {[%emt 0:01:29]} Re8
{[%emt 0:00:31]} 10. O-O {[%emt 0:01:21]} Nf8 {[%emt 0:01:39]} 11. Rad1 {
[%emt 0:01:58]} h6 {[%emt 0:03:09]} 12. Bh4 {[%emt 0:00:44]} Nh5 {[%emt 0:00:
00]} 13. Bxe7 {[%emt 0:00:52]} Qxe7 {[%emt 0:01:51]} 14. Nc1 {[%emt 0:02:04]}
Nf6 {[%emt 0:15:26]} 15. Rfe1 {[%emt 0:02:49]} Bd7 {[%emt 0:12:36]} 16. a3 {
[%emt 0:11:14]} Ne6 {[%emt 0:06:12]} 17. Bf1 {[%emt 0:08:19]} Nf8 {[%emt 0:00:
00]} 18. f3 {[%emt 0:05:07]} c5 {[%emt 0:06:57]} 19. dxc5 {[%emt 0:00:56]} Qxc5
{[%emt 0:02:53]} 20. Qf2 {[%emt 0:05:19]} Ne6 {[%emt 0:07:48]} 21. Nb3 {
[%emt 0:03:19]} Qb6 {[%emt 0:00:48]} 22. Nd4 {[%emt 0:00:48]} Rac8 {[%emt 0:00:
00]} 23. Nxe6 {[%emt 0:05:25]} fxe6 {[%emt 0:03:03]} 24. Bd3 {[%emt 0:02:20]}
Re7 {[%emt 0:02:01]} 25. Re2 {[%emt 0:04:41]} Rd8 {[%emt 0:06:04]} 26. Bb1 {
[%emt 0:00:26]} Bc6 {[%emt 0:01:00]} 27. Ba2 {[%emt 0:03:14]} Kh8 {[%emt 0:00:
00]} 28. Qh4 {[%emt 0:06:47]} e5 {[%emt 0:03:33]} 29. Qb4 {[%emt 0:06:42]} Qxb4
{[%emt 0:01:26]} 30. axb4 {[%emt 0:00:01]} a6 {[%emt 0:00:54]} 31. Bb1 {
[%emt 0:02:06]} Be8 {[%emt 0:01:47]} 32. Red2 {[%emt 0:01:12]} Bf7 {[%emt 0:00:
00]} 33. Ba2 {[%emt 0:01:57]} Red7 {[%emt 0:00:30]} 34. Na4 {[%emt 0:00:12]}
Bg8 {[%emt 0:01:51]} 35. Nc5 {[%emt 0:01:28]} Re7 {[%emt 0:00:17]} 36. h4 {
[%emt 0:01:21]} h5 {[%emt 0:00:36]} 37. Kh2 {[%emt 0:05:51]} g6 {[%emt 0:00:50]
} 38. Ne4 {[%emt 0:01:51]} Nxe4 {[%emt 0:00:52]} 39. fxe4 {[%emt 0:00:01]} d4 {
[%emt 0:00:28]} 40. Bxg8 {[%emt 0:00:08]} Kxg8 {[%emt 0:00:42]} 41. exd4 {
[%emt 0:30:04]} exd4 {[%emt 0:30:46]} 42. Rxd4 {[%emt 0:00:05]} Rde8 {[%emt 0:
00:00]} 43. Re1 {[%emt 0:04:11]} Re5 {[%emt 0:00:00]} 44. Re3 {[%emt 0:00:00]}
Rb5 {[%emt 0:00:00]} 45. Kg3 {[%emt 0:00:00]} Kg7 {[%emt 0:00:00]} 46. e5 {
[%emt 0:00:00]} Rexe5 {[%emt 0:00:00]} 47. Rxe5 {[%emt 0:00:00]} Rxe5 {[%emt 0:
00:00]} 48. Rd7+ {[%emt 0:00:00]} Kh6 {[%emt 0:00:00]} 49. Rxb7 {[%emt 0:00:00]
} Re3+ {[%emt 0:00:00]} 50. Kf4 {[%emt 0:00:00]} Rb3 {[%emt 0:00:00]} 51. Rb6 {
[%emt 0:00:00]} Rxb2 {[%emt 0:00:00]} 52. g3 {[%emt 0:00:00]} Ra2 {[%emt 0:00:
00]} 53. Ke5 {[%emt 0:00:00]} a5 {[%emt 0:00:00]} 54. b5 {[%emt 0:00:00]} a4 {
[%emt 0:00:00]} 55. Ra6 {[%emt 0:00:00]} a3 {[%emt 0:00:00]} 56. Kd6 {[%emt 0:
00:00]} Ra1 {[%emt 0:00:00]} 57. Kc6 {[%emt 0:00:00]} a2 {[%emt 0:00:00]} 58.
Kb6 {[%emt 0:00:00]} Kg7 {[%emt 0:00:00]} 59. Ra3 {[%emt 0:00:00]} Kf6 {
[%emt 0:00:00]} 60. Ka6 {[%emt 0:00:00]} Ke7 {[%emt 0:00:00]} 61. b6 {[%emt 0:
00:00]} Kd7 {[%emt 0:00:33]} 62. b7 {[%emt 0:00:00]} Kc7 {[%emt 0:00:04]} 63.
Rc3+ {[%emt 0:00:00]} 1-0

[Event "44th Chess Olympiad Open 2022"]
[Site "Chennai"]
[Date "2022.07.31"]
[Round "3.46"]
[White "Pace, Colin"]
[Black "Bastidas Rodriguez, Emilio"]
[Result "1-0"]
[WhiteElo "2159"]
[BlackElo "2351"]
[Annotator "RC"]
[PlyCount "79"]
[EventDate "2022.??.??"]
[TimeControl "60"]

1. e4 {[%emt 0:00:03]} c5 {[%emt 0:03:12]} 2. Nf3 {[%emt 0:00:07]} e6 {[%emt 0:
00:00]} 3. d4 {[%emt 0:00:22]} cxd4 {[%emt 0:00:00]} 4. Nxd4 {[%emt 0:00:04]}
a6 {[%emt 0:00:03]} 5. Bd3 {[%emt 0:00:10]} Nf6 {[%emt 0:00:41]} 6. O-O {
[%emt 0:01:25]} Qc7 {[%emt 0:00:15]} 7. c4 {[%emt 0:03:12]} Be7 {[%emt 0:00:44]
} 8. Qe2 {[%emt 0:02:58]} d6 {[%emt 0:04:23]} 9. f4 {[%emt 0:05:06]} Nbd7 {
[%emt 0:04:22]} 10. b3 {[%emt 0:06:16]} h6 {[%emt 0:15:29]} 11. Bb2 {[%emt 0:
00:00]} O-O {[%emt 0:02:04]} 12. Nd2 {[%emt 0:04:11]} Nh7 {[%emt 0:11:08]} 13.
Kh1 {[%emt 0:10:37]} Bf6 {[%emt 0:04:38]} 14. e5 {[%emt 0:02:40]} dxe5 {
[%emt 0:10:43]} 15. Qe4 {[%emt 0:00:40]} g6 {[%emt 0:00:03]} 16. Nxe6 {[%emt 0:
00:00]} Qd6 {[%emt 0:00:01]} 17. Nxf8 {[%emt 0:08:26]} Nhxf8 {[%emt 0:00:26]}
18. Qe2 {[%emt 0:06:30]} Nc5 {[%emt 0:02:06]} 19. Ne4 {[%emt 0:02:59]} Nxe4 {
[%emt 0:00:42]} 20. fxe5 {[%emt 0:02:01]} Bxe5 {[%emt 0:00:50]} 21. Bxe5 {
[%emt 0:00:17]} Qxe5 {[%emt 0:00:03]} 22. Qxe4 {[%emt 0:00:10]} Qc7 {[%emt 0:
00:00]} 23. Qh4 {[%emt 0:02:11]} h5 {[%emt 0:00:34]} 24. Be4 {[%emt 0:01:09]}
Be6 {[%emt 0:00:21]} 25. Rad1 {[%emt 0:00:16]} Re8 {[%emt 0:01:33]} 26. h3 {
[%emt 0:01:13]} b5 {[%emt 0:01:11]} 27. cxb5 {[%emt 0:03:12]} axb5 {[%emt 0:00:
00]} 28. Bf3 {[%emt 0:03:05]} Qa5 {[%emt 0:01:15]} 29. Qf2 {[%emt 0:01:15]} b4
{[%emt 0:00:43]} 30. Rd4 {[%emt 0:01:34]} Rc8 {[%emt 0:11:54]} 31. Qd2 {
[%emt 0:02:15]} Rc3 {[%emt 0:01:21]} 32. Bd5 {[%emt 0:05:05]} Qc5 {[%emt 0:00:
00]} 33. Be4 {[%emt 0:04:58]} Qe5 {[%emt 0:02:54]} 34. Rf3 {[%emt 0:02:14]}
Rc1+ {[%emt 0:06:36]} 35. Qxc1 {[%emt 0:00:07]} Qxd4 {[%emt 0:00:02]} 36. Qc2 {
[%emt 0:00:33]} h4 {[%emt 0:01:34]} 37. Rf1 {[%emt 0:00:29]} Qe5 {[%emt 0:00:
00]} 38. Bf3 {[%emt 0:00:52]} Bf5 {[%emt 0:04:23]} 39. Qc4 {[%emt 0:00:47]} Qg3
{[%emt 0:01:47]} 40. Bg4 {[%emt 0:00:57]} 1-0

[Event "44th Chess Olympiad Open 2022"]
[Site "Chennai"]
[Date "2022.07.31"]
[Round "3.46"]
[White "Darmanin, Jake"]
[Black "Matamoros Franco, Carlos S."]
[Result "0-1"]
[WhiteElo "2101"]
[BlackElo "2459"]
[Annotator "RC"]
[PlyCount "70"]
[EventDate "2022.??.??"]
[TimeControl "60"]

1. e4 {[%emt 0:00:06]} c5 {[%emt 0:00:41]} 2. Nf3 {[%emt 0:00:58]} Nc6 {
[%emt 0:00:17]} 3. c3 {[%emt 0:00:16]} d5 {[%emt 0:00:32]} 4. exd5 {[%emt 0:00:
00]} Qxd5 {[%emt 0:00:06]} 5. d4 {[%emt 0:00:25]} Bg4 {[%emt 0:00:19]} 6. Be2 {
[%emt 0:02:11]} cxd4 {[%emt 0:00:42]} 7. cxd4 {[%emt 0:01:09]} e6 {[%emt 0:00:
00]} 8. Nc3 {[%emt 0:01:33]} Qa5 {[%emt 0:03:12]} 9. Be3 {[%emt 0:10:46]} Bb4 {
[%emt 0:02:43]} 10. a3 {[%emt 0:06:43]} Bxc3+ {[%emt 0:00:12]} 11. bxc3 {
[%emt 0:00:06]} Bxf3 {[%emt 0:05:55]} 12. Bxf3 {[%emt 0:03:58]} Qxc3+ {[%emt 0:
00:00]} 13. Kf1 {[%emt 0:00:09]} Nge7 {[%emt 0:01:18]} 14. g4 {[%emt 0:06:41]}
O-O {[%emt 0:05:29]} 15. Kg2 {[%emt 0:02:33]} Rad8 {[%emt 0:05:17]} 16. Qb1 {
[%emt 0:02:01]} Rd7 {[%emt 0:04:21]} 17. Rc1 {[%emt 0:03:49]} Qa5 {[%emt 0:00:
00]} 18. Rc5 {[%emt 0:00:15]} Qd8 {[%emt 0:00:12]} 19. Rh5 {[%emt 0:01:39]} Ng6
{[%emt 0:10:41]} 20. Bxc6 {[%emt 0:08:06]} bxc6 {[%emt 0:02:36]} 21. Qc2 {
[%emt 0:00:19]} Rxd4 {[%emt 0:28:51]} 22. Kh1 {[%emt 0:00:20]} Rd5 {[%emt 0:00:
00]} 23. Rh3 {[%emt 0:04:27]} Qd7 {[%emt 0:01:26]} 24. Rc1 {[%emt 0:03:44]} Rc8
{[%emt 0:00:23]} 25. Rg3 {[%emt 0:08:01]} c5 {[%emt 0:02:54]} 26. f4 {[%emt 0:
00:00]} Rd3 {[%emt 0:04:31]} 27. Qf2 {[%emt 0:03:41]} Rd1+ {[%emt 0:03:12]} 28.
Kg2 {[%emt 0:02:37]} Qd5+ {[%emt 0:00:34]} 29. Kh3 {[%emt 0:01:18]} Rxc1 {
[%emt 0:00:47]} 30. Bxc1 {[%emt 0:00:05]} h5 {[%emt 0:00:04]} 31. g5 {[%emt 0:
00:00]} Qf5+ {[%emt 0:02:21]} 32. Kg2 {[%emt 0:00:03]} Rd8 {[%emt 0:02:55]} 33.
Rc3 {[%emt 0:06:04]} Rd4 {[%emt 0:06:28]} 34. Rf3 {[%emt 0:05:07]} Qg4+ {
[%emt 0:00:00]} 35. Rg3 {[%emt 0:01:00]} Nh4+ {[%emt 0:00:00]} 0-1

[Event "44th Chess Olympiad Open 2022"]
[Site "Chennai"]
[Date "2022.07.31"]
[Round "3.47"]
[White "Greet, Andrew N"]
[Black "Mwale, Joseph"]
[Result "1-0"]
[WhiteElo "2392"]
[BlackElo "2131"]
[Annotator "RC"]
[PlyCount "117"]
[EventDate "2022.??.??"]
[TimeControl "60"]

1. d4 {[%emt 0:00:04]} Nf6 {[%emt 0:00:09]} 2. c4 {[%emt 0:00:08]} e6 {[%emt 0:
00:00]} 3. Nc3 {[%emt 0:00:07]} Bb4 {[%emt 0:00:47]} 4. e3 {[%emt 0:00:18]} d5
{[%emt 0:00:26]} 5. a3 {[%emt 0:00:26]} Bxc3+ {[%emt 0:06:09]} 6. bxc3 {
[%emt 0:00:08]} c5 {[%emt 0:00:27]} 7. cxd5 {[%emt 0:00:09]} exd5 {[%emt 0:00:
00]} 8. Bd3 {[%emt 0:00:08]} O-O {[%emt 0:00:44]} 9. Ne2 {[%emt 0:00:09]} Nc6 {
[%emt 0:00:49]} 10. O-O {[%emt 0:00:13]} Re8 {[%emt 0:01:14]} 11. f3 {[%emt 0:
00:00]} Rb8 {[%emt 0:18:22]} 12. Rb1 {[%emt 0:06:57]} a6 {[%emt 0:14:31]} 13.
a4 {[%emt 0:08:56]} Bd7 {[%emt 0:15:09]} 14. Ng3 {[%emt 0:02:05]} Qc7 {[%emt 0:
00:00]} 15. Kh1 {[%emt 0:06:06]} g6 {[%emt 0:05:38]} 16. e4 {[%emt 0:05:07]}
cxd4 {[%emt 0:02:36]} 17. cxd4 {[%emt 0:03:00]} Be6 {[%emt 0:05:40]} 18. e5 {
[%emt 0:03:31]} Nd7 {[%emt 0:00:04]} 19. Ba3 {[%emt 0:04:03]} Qa5 {[%emt 0:00:
00]} 20. Bd6 {[%emt 0:03:07]} Rbc8 {[%emt 0:00:39]} 21. f4 {[%emt 0:01:42]}
Nxd4 {[%emt 0:06:39]} 22. f5 {[%emt 0:02:44]} Nxf5 {[%emt 0:04:46]} 23. Nxf5 {
[%emt 0:00:57]} gxf5 {[%emt 0:02:27]} 24. Rxf5 {[%emt 0:02:00]} Nf8 {[%emt 0:
00:00]} 25. Bb4 {[%emt 0:13:11]} Qd8 {[%emt 0:00:55]} 26. Rh5 {[%emt 0:00:35]}
Ng6 {[%emt 0:00:35]} 27. Bd2 {[%emt 0:03:52]} Qd7 {[%emt 0:01:52]} 28. h3 {
[%emt 0:04:53]} Rc6 {[%emt 0:00:49]} 29. Bg5 {[%emt 0:02:21]} Bf5 {[%emt 0:00:
00]} 30. Bf6 {[%emt 0:03:55]} Bxd3 {[%emt 0:00:38]} 31. Qxd3 {[%emt 0:00:05]}
Qc7 {[%emt 0:01:10]} 32. Qd2 {[%emt 0:03:40]} Nxe5 {[%emt 0:00:40]} 33. Qh6 {
[%emt 0:00:53]} Rxf6 {[%emt 0:00:13]} 34. Qxf6 {[%emt 0:00:07]} Re6 {[%emt 0:
00:00]} 35. Qg5+ {[%emt 0:02:58]} Ng6 {[%emt 0:00:19]} 36. Qxd5 {[%emt 0:01:31]
} Rc6 {[%emt 0:00:46]} 37. Rf1 {[%emt 0:07:00]} Rc1 {[%emt 0:00:32]} 38. Rhf5 {
[%emt 0:01:45]} Rxf1+ {[%emt 0:00:17]} 39. Rxf1 {[%emt 0:00:05]} b6 {[%emt 0:
00:00]} 40. Qa8+ {[%emt 0:00:44]} Kg7 {[%emt 0:00:07]} 41. Qxa6 {[%emt 0:30:14]
} Nf4 {[%emt 0:05:27]} 42. Qb5 {[%emt 0:00:00]} Ne6 {[%emt 0:06:11]} 43. Qb2+ {
[%emt 0:00:00]} Kg8 {[%emt 0:00:32]} 44. Rc1 {[%emt 0:00:00]} Qd7 {[%emt 0:00:
00]} 45. Qc2 {[%emt 0:00:00]} Qd5 {[%emt 0:06:11]} 46. Qc8+ {[%emt 0:00:00]}
Kg7 {[%emt 0:00:12]} 47. Qc3+ {[%emt 0:00:00]} f6 {[%emt 0:05:04]} 48. Rf1 {
[%emt 0:00:00]} Qg5 {[%emt 0:00:15]} 49. Qc6 {[%emt 0:00:00]} Qe3 {[%emt 0:00:
00]} 50. Rb1 {[%emt 0:00:00]} Ng5 {[%emt 0:04:40]} 51. Qxb6 {[%emt 0:00:00]}
Qg3 {[%emt 0:02:37]} 52. Qd4 {[%emt 0:00:00]} Kg6 {[%emt 0:03:14]} 53. Rf1 {
[%emt 0:00:00]} f5 {[%emt 0:00:29]} 54. Qf4 {[%emt 0:00:00]} Qd3 {[%emt 0:00:
00]} 55. Rc1 {[%emt 0:00:00]} Qd5 {[%emt 0:00:38]} 56. Rb1 {[%emt 0:00:32]} Ne6
{[%emt 0:00:55]} 57. Rb6 {[%emt 0:02:28]} Kg7 {[%emt 0:00:51]} 58. Qd6 {
[%emt 0:00:40]} Qc4 {[%emt 0:00:14]} 59. Qe7+ {[%emt 0:00:15]} 1-0